Cogmind - Beta 13 @@@ ROGUE MODE // 2024.03.30 @ 23:32:02 Player: BionicSandwich Result: Destroyed by as-30156 with Assembled Heavy Rifle Performance ------------- Evolutions (0) 0 Regions Visited (2) 400 Robots Destroyed (17) 85 Value Destroyed (279) 279 Prototype IDs (0) 0 Alien Tech Used (0) 0 Bonus (0) 0 TOTAL SCORE: 764 Bonus ------- None Cogmind --------- Core Integrity 0/250 Matter 300/300 Energy 100/100 System Corruption 4% Temperature Warm (118) Movement Treading (240) Ox1 Location -10/Mines Parts ------- > --- POWER (1) -------- (None) > --- PROPULSION (2) --- Improved Treads > --- UTILITY (2) ------ High-capacity Storage Unit > --- WEAPON (2) ------- Flail > --- INVENTORY (20) --- Light Ion Engine Improved Treads High-capacity Battery (250) Medium Matter Pod (100) High-capacity Matter Pod (200) High-capacity Matter Pod (200) Signal Interpreter Improved Terrain Scanner Weapon Shielding Medium Laser Datajack Heavy Explosive Trap Heavy Explosive Trap Heavy Explosive Trap Peak State ------------ > --- POWER ------------ Ion Engine > --- PROPULSION ------- Improved Treads Improved Treads > --- UTILITY ---------- Heat Sink Improved Terrain Scanner > --- WEAPON ----------- Particle Cannon Flail > --- INVENTORY -------- Light Ion Engine Aluminum Leg Medium Laser Particle Gun [Rating: 13] Favorites ----------- Power Ion Engine Engine Ion Engine Propulsion Improved Treads Treads Improved Treads Leg Aluminum Leg Utility Heat Sink Device Heat Sink Storage High-capacity Storage Unit Weapon Flail Energy Gun Particle Gun Energy Cannon Particle Cannon Impact Weapon Flail Build | -11 -10 -10 ------- Run | Yrd Mat Min Slots Evolved . | . . . Power . | . . . Propulsion . | . . . Utility . | . . . Weapon . | . . . Parts Attached 18 | 6 12 . Power 2 | 1 1 . Engine 2 | 1 1 . Core . | . . . Reactor . | . . . Propulsion 4 | 2 2 . Treads 2 | . 2 . Leg 2 | 2 . . Wheel . | . . . Hover . | . . . Flight . | . . . Utility 5 | 1 4 . Device 4 | 1 3 . Storage 1 | . 1 . Processor . | . . . Hackware . | . . . Protection . | . . . Artifact . | . . . Weapon 7 | 2 5 . Energy Gun 5 | 2 3 . Energy Cannon 1 | . 1 . Ballistic Gun . | . . . Ballistic Cannon . | . . . Launcher . | . . . Special Weapon . | . . . Impact Weapon 1 | . 1 . Slashing Weapon . | . . . Piercing Weapon . | . . . Special Melee Weapon . | . . . Unidentified Prototypes . | . . . Parts Lost 6 | . 2 4 Power 2 | . 1 1 Propulsion 1 | . . 1 Utility 1 | . . 1 Weapon 2 | . 1 1 Highest Loss Streak 4 | . 1 4 To Critical Strikes . | . . . Average Slot Usage (%) 98 | . 95 99 Engine 13 | . 13 13 Treads 24 | . 17 28 Leg 3 | . 10 . Device 15 | . 19 13 Storage 10 | . 4 14 Energy Gun 13 | . 13 14 Energy Cannon 1 | . 5 . Impact Weapon 12 | . 9 14 Naked Turns . | . . . Heaviest Build 51 | 8 51 51 Greatest Support 46 | 20 46 46 Greatest Overweight (x) 4 | . 4 1 Average Overweight (x) . | . . 1 Largest Inventory Capacity 20 | 5 20 20 Average Capacity 15 | 5 9 20 Most Carried 14 | 3 9 14 Average Carried 7 | . 4 10 Final Capacity 20 | 5 20 20 Final Carried 14 | 2 9 14 Class Distribution -------------------- 100% | Mutant Dominant Class ---------------- Mutant | -10/Materials Mutant | -10/Mines Resources | -11 -10 -10 ----------- Run | Yrd Mat Min Matter Collected 485 | 250 90 145 Remotely . | . . . Salvage Created 529 | 94 288 147 Parts 26 | 8 14 4 Haulers Intercepted . | . . . Recyclers Shooed 1 | . 1 . Parts Field Recycled . | . . . Retrieved Matter . | . . . Parts Self-Destructed . | . . . Prevented . | . . . Kills | -11 -10 -10 ------- Run | Yrd Mat Min Combat Hostiles Destroyed 6 | 1 4 1 Melee 1 | . 1 . Guns 3 | 1 1 1 Cannons 1 | . 1 . Classes Destroyed 6 | 2 3 1 Worker 1 | . 1 . Builder 3 | . 1 2 Tunneler 5 | 3 . 2 Recycler 2 | . 1 1 Swarmer 1 | . . 1 Grunt 5 | 1 4 . Best Kill Streak 5 | 4 5 3 Combat Bots Only 2 | 1 2 1 Max Kills in Single Turn 2 | 1 2 1 Gunslinging . | . . . Exploded . | . . . Melee 1 | . 1 . Uniques/NPCs Destroyed . | . . . Combat | -11 -10 -10 -------- Run | Yrd Mat Min Hostile Shots Fired 90 | 2 31 57 Missed 15 | 2 3 10 Damage Taken 1036 | . 388 648 Core 265 | . 43 222 Absorbed by Shields . | . . . Core Remaining (%) 100 | 100 . . Volleys Fired 33 | 12 15 6 Largest 2 | 2 2 1 Hottest 133 | 100 133 65 Shots Fired 56 | 24 26 6 Gun 41 | 24 11 6 Cannon 15 | . 15 . Launcher . | . . . Special . | . . . Kinetic . | . . . Thermal 56 | 24 26 6 Explosive . | . . . Electromagnetic . | . . . Robot Hit Streak 9 | 9 3 2 Robot Miss Streak 2 | 2 2 2 Penetration Max . | . . . Secondary Targets . | . . . Shots Hit Robots 47 | 16 22 9 Core Hits 18 | 5 10 3 Critical Kills . | . . . Critical Parts Destroyed 1 | . . 1 Critical Strikes 1 | . . 1 Smash 1 | . . 1 Melee Attacks 15 | . 8 7 Impact 15 | . 8 7 Slashing . | . . . Piercing . | . . . Sneak Attacks 6 | . . 6 Combat Hostiles . | . . . Follow-up Attacks . | . . . Damage Inflicted 1156 | 201 489 466 Guns 354 | 201 103 50 Cannons 165 | . 165 . Explosions . | . . . Melee 637 | . 221 416 Ramming . | . . . Kinetic . | . . . Thermal 519 | 201 268 50 Explosive . | . . . Electromagnetic . | . . . Impact 637 | . 221 416 Slashing . | . . . Piercing . | . . . Highest Corruption 4 | . . 4 Average Corruption 4 | . . 4 Corruption Purged . | . . . Corruption Blocked . | . . . Overload Shots . | . . . Overflow Damage 229 | . 25 204 Projectiles . | . . . Explosions . | . . . Melee 229 | . 25 204 Knockbacks 5 | . 2 3 Impact 5 | . 2 3 Kinetic . | . . . Secondary . | . . . Self-Inflicted Damage . | . . . Shots . | . . . Rammed . | . . . Targets Rammed . | . . . Kicked . | . . . Crushed . | . . . Highest Temperature 471 | 342 471 110 Average Temperature 151 | 162 180 55 Received Heat Transfer 625 | . 216 409 Effects 4 | 1 3 . Shutdowns 1 | 1 . . Energy Bleed 2 | . 2 . Damage (minor) 1 | . 1 . Siege Activations . | . . . Robots Corrupted . | . . . Combat Hostiles . | . . . Parts Fried 11 | . . 11 Impact Corruptions 7 | . 1 6 Robots Melted . | . . . Combat Hostiles . | . . . Parts Melted . | . . . Heat Transferred 1235 | 592 532 111 Parts Sabotaged . | . . . Parts Stolen . | . . . Parts Stripped . | . . . Power Chain Reactions . | . . . Alert | -11 -10 -10 ------- Run | Yrd Mat Min Peak Influence 163 | 35 163 40 Initial 22 | . 22 5 Average 31 | 12 64 16 Maximum Alert Level . | . . . Low Security (%) 100 | 100 100 100 Level 1 . | . . . Level 2 . | . . . Level 3 . | . . . Level 4 . | . . . Level 5 . | . . . High Security . | . . . Max Security . | . . . Squads Dispatched . | . . . Investigation . | . . . Extermination . | . . . Reinforcement . | . . . Assault . | . . . Garrison . | . . . Intercept . | . . . Searches Triggered . | . . . Construction Impeded . | . . . Haulers Reinforced . | . . . Active Scanning Responses . | . . . Cargo Convoy Interrupts . | . . . Stealth | -11 -10 -10 --------- Run | Yrd Mat Min Distress Signals . | . . . Communications Jammed . | . . . Distress Signals . | . . . Times Spotted 27 | 1 10 16 Peak Tracking Total 14 | 1 3 14 Tactical Retreats . | . . . Traps | -11 -10 -10 ------- Run | Yrd Mat Min Traps Triggered . | . . . Indirectly . | . . . Trap Hack Attempts . | . . . Triggered . | . . . Disarmed . | . . . Reprogrammed . | . . . Reused . | . . . Traps Extracted . | . . . Installed . | . . . Triggered 1 | . . 1 Most Traps Carried 3 | . . 3 Machines | -11 -10 -10 ---------- Run | Yrd Mat Min Machines Disabled 1 | . . 1 Max in Single Turn 1 | . . 1 Machines Repaired . | . . . Machines Dismantled . | . . . Machines Sabotaged . | . . . Overloaded Fab Kills . | . . . Hacking | -11 -10 -10 --------- Run | Yrd Mat Min Machines Accessed 1 | . 1 . Terminals . | . . . Fabricators . | . . . Repair Stations 1 | . 1 . Recycling Units . | . . . Scanalyzers . | . . . Garrison Access . | . . . Total Hacks 3 | . 3 . Successful 1 | . 1 . Failed 2 | . 2 . Catastrophic . | . . . Database Lockouts . | . . . Manual . | . . . Terminals . | . . . Fabricators . | . . . Repair Stations 3 | . 3 . Recycling Units . | . . . Scanalyzers . | . . . Garrison Access . | . . . Terminal Hacks . | . . . Fabricator Hacks . | . . . Repair Station Hacks 1 | . 1 . Scan Component 1 | . 1 . Recycling Unit Hacks . | . . . Scanalyzer . | . . . Garrison Access Hacks . | . . . Unauthorized Hacks . | . . . Terminals . | . . . Fabricators . | . . . Repair Stations . | . . . Recycling Units . | . . . Scanalyzers . | . . . Garrison Access . | . . . Data Cores Recovered . | . . . Used . | . . . Hacking Detections 1 | . 1 . Full Trace Events . | . . . Feedback Events . | . . . Feedback Blocked . | . . . Robot Schematics Acquired . | . . . Robots Built . | . . . Authchips . | . . . Time . | . . . Total Robot Build Rating . | . . . Part Schematics Acquired . | . . . Parts Built . | . . . Authchips . | . . . Time . | . . . Total Part Build Rating . | . . . Parts Repaired . | . . . Time . | . . . Parts Recycled . | . . . Recycled Matter . | . . . Retrieved Matter . | . . . Retrieved Components . | . . . Parts Scanalyzed . | . . . Part Schematics Acquired . | . . . Parts Damaged . | . . . Bothacking | -11 -10 -10 ------------ Run | Yrd Mat Min Used RIF Installer . | . . . Robots Hacked . | . . . Non-combat . | . . . Combat . | . . . Robot Hacks Applied . | . . . Relay Couplers Released . | . . . Fabnet Peak Effective % . | . . . Robots Rewired . | . . . Allies Hacked . | . . . Hacks Repelled . | . . . Allies | -11 -10 -10 -------- Run | Yrd Mat Min Total Allies 2 | . . 2 Largest Group 2 | . . 2 Highest-Rated Group 45 | . . 45 Highest-Rated Ally 31 | . . 31 Total Orders . | . . . Ally Attacks 4 | . . 4 Total Damage 63 | . . 63 Kills 2 | . . 2 Allies Corrupted 1 | . . 1 Allies Melted . | . . . Intel | -11 -10 -10 ------- Run | Yrd Mat Min Robot Analysis Total . | . . . Derelict Logs Recovered . | . . . Drone Launches . | . . . Drone Recoveries . | . . . Exploration | -11 -10 -10 ------------- Run | Yrd Mat Min Turns Passed 1765 | 142 542 1081 Spaces Moved 773 | 86 253 434 Core 19 | 17 2 . Treads 570 | . 136 434 Legs 184 | 69 115 . Wheels . | . . . Hover . | . . . Flight . | . . . Fastest Speed 50 | 50 120 240 Average Speed 199 | 106 161 240 Slowest Speed 250 | 120 250 240 Overloaded Moves . | . . . Propulsion Burnouts . | . . . Robots Hopped . | . . . Cave-ins Triggered . | . . . Exploration Rate (%) 37 | 7 40 64 Regions Visited 2 Branch Regions 1 Pre-discovered Areas . | . . . Known Exits Taken . | . . . Unknown Exits Taken 2 | 1 1 . Scrap Searched 1 | . . 1 Spaces Dug . | . . . Terrain Destroyed . | . . . Melee . | . . . Projectile . | . . . AOE . | . . . Terrain Rammed . | . . . Walls Destroyed . | . . . Machines Disabled . | . . . Actions | -11 -10 -10 --------- Run | Yrd Mat Min Total 924 | 112 352 460 Wait 42 | 1 41 . Move 771 | 85 252 434 Hop . | . . . Pick Up 34 | 8 17 9 Fast Attach . | . . . Attach 14 | 6 8 . Detach . | . . . Swap 4 | . 4 . Drop 11 | . 7 4 Fire 33 | 12 15 6 Melee 15 | . 8 7 Ram . | . . . Kick . | . . . Crush . | . . . Escape Stasis . | . . . Rewire . | . . . Trap . | . . . Miscellaneous . | . . . Route ------- -11/Scrapyard -10/Materials (discovered 3 exits: [*Mat] / [*Min] / [Sub]) -10/Mines (discovered 2 exits: [*Mat x2]) History --------- Turn | Location | Event 2 | -11/Scrapyard | Met Revision 17 77 | -11/Scrapyard | Discovered new exit (range 8) 143 | -11/Scrapyard | Entered Materials 154 | -10/Materials | Discovered new exit (range 8) 302 | -10/Materials | Build established: Mutant 316 | -10/Materials | Discovered new exit (range 10) 485 | -10/Materials | Discovered new exit (range 14) 685 | -10/Materials | Entered Mines 828 | -10/Mines | Discovered new exit (range 6) 930 | -10/Mines | Discovered new exit (range 6) 1637 | -10/Mines | Found a hidden stash of uninstalled traps 1741 | -10/Mines | Assembled infested the area 1759 | -10/Mines | Core integrity fell below 50% 1765 | -10/Mines | Core integrity fell below 20% 1766 | -10/Mines | Destroyed by as-30156 with Assembled Heavy Rifle Last Messages --------------- K-01 Serf cleans the Plasma Injector. Acquired Hcp. Battery. T-07 Excavator is excavating. S-10 Pest destroyed. T-07 Excavator is excavating. ALERT: Infestation in the mines, dispatching Demolisher response squad. as-11800 sneak attacks. T-07 Excavator system corrupted by crushing effect. T-07 Excavator system terminally corrupted. Heat Sink destroyed. as-11800 destroyed. G7-41W(g) system corrupted by crushing effect. as-39391 destroyed. G7-41W(g) system terminally corrupted. Ion Engine destroyed. System corrupted by crushing effect (+4). Imp. Treads destroyed. Particle Gun destroyed. Map ----- +----------------------------------------------------+ | | | | | | | | | | | | | | | | | | | ?????????????????????????????????????????? | | ?????????????????????????????????????????? | | ?????????????????????????????????????????? | | ????????????????????????###??????????????? | | ???????????????????????? ###????????????? | | ???????????????????????? ?????????????? | | ?????????????###???????? ??????????????? | | ????????????? #???????# ???????????????? | | ????????????? ???????# #???????????????? | | ???????????### #????#### #???????????????? | | ####???????? #???## #########???????? | | ##??#?????#%#??##%%aa %% #???????? | | ## ??????# #### %aaaa ????????? | | ??????# aa a##??????????????? | | ???????# #### aa ##?????????????? | | """ ??????# #??# ### ^^#????? | | """ ?????# #??## aa@ #????? | | """ #### ##??## ## #??? | | #???#######??? ###???? | | ## %####?????????????????????? | | ### ### ! #?????????????????????? | | ### ???# #?????????????????????? | | #?## ????##### #?????????????????????? | | ##??##?????????# #?????????????????????? | | #######????????# #???????????#?????????? | | #??????### ##??????## #?????????? | | ######## ##??? #?????????? | | ### ## ## ### #?????????? | | ##?# ## ???????? | | ###??# ???????? | | ?????# ## ### ???????? | | #????### ### ##? #????? #????????? | | ####???# #?## ### #?????????????????? | | ##??# #??## #?????????????????? | | #??# ##### #####?????????????????? | | ##??# ##?????????????????????? | | ##???######## ##??????????????????????? | | #???????????####???????????????????????? | | ##??????????????????????????????????????? | | #???????????????????????????????????????? | | #???????????????????????????????????????? | +----------------------------------------------------+ Best States ------------- Heat Dissipation 35 Energy Generation 10 Energy Capacity 250 Matter Stores 300 Matter Capacity 300 Sight Range 16 Terrain Scan Range 16 Terrain Scan Density 10 Evasion (%) 55 Recoil Reduction 2 Item Schematics ----------------- None Robot Schematics ------------------ None Fabricated ------------ Nothing Alien Tech Used ----------------- None Achievements -------------- None Challenges ------------ None Game ------ Seed ImprovedFieldCompactor Manual? 0 Play Time 00:19:45 Cumulative 0.5 hours Start 2024.03.30 @ 23:12:43 End 2024.03.30 @ 23:32:02 Sessions 1 Manual Loads 0 Difficulty Rogue Special Mode None Game No. 2 Rogue 2 Adventurer 0 Explorer 0 Win Type - Total 0 Types 0/0/0/0/0/0/0/0/0 Lore% 0 Gallery% 2 Achievement% 1 Wizard Run 0 Options --------- Layout 1 ASCII 0 Keyboard 0 Movement Mouse Keybinds 0 Fullscreen 1 Font 48/Smallcaps Map View 50x35 Zoom Use 0% Tactical HUD 0 Map Filters NONE Filters NONE Steam 1 RUN: b054f10b-6045-428c-923b-fee5d3b35f97